fUSD/lending_fUSD_20250623
["ID","MTS","AMOUNT","RATE_DAILY","PERIOD"]
[367268278,1750722695378,-490.0,0.00023561,2]
[367268279,1750722695388,-498.78,0.00023561,2]
[367268280,1750722695397,-490.0,0.00023561,2]
[367268281,1750722695407,-519.34,0.00023561,2]
[367268282,1750722695417,-3452.51,0.00023561,2]
[367268283,1750722695426,-642.9,0.00023561,2]
[367268284,1750722695436,-8799.43,0.00023561,2]
[367268285,1750722695445,-662.96,0.00023561,2]
[367268286,1750722695455,-600.19,0.00023561,2]
[367268287,1750722695465,-730.64,0.00023561,2]
[367268288,1750722695475,-639.41,0.00023561,2]
[367268289,1750722695485,-748.1,0.00023561,2]
[367268290,1750722695495,-1130.36,0.00023561,2]
[367268291,1750722695504,-1224.48,0.00023561,2]
[367268292,1750722695514,-1249.16,0.00023561,2]
[367268293,1750722695523,-490.0,0.00023561,2]
[367268294,1750722695533,-945.68,0.00023561,2]
[367268295,1750722695543,-1953.11,0.00023561,2]
[367268296,1750722695552,-1018.92,0.00023561,2]
[367268297,1750722695562,-662.33,0.00023561,2]
[367268298,1750722695571,-2032.29,0.00023561,2]
[367268299,1750722695581,-1017.38,0.00023561,2]
[367268300,1750722695590,-955.04,0.00023561,2]
[367268301,1750722695600,-490.0,0.00023561,2]
[367268302,1750722695610,-598.02,0.00023561,2]
[367268303,1750722695619,-528.13,0.00023561,2]
[367268304,1750722695629,-490.0,0.00023561,2]
[367268305,1750722695639,-490.0,0.00023561,2]
[367268306,1750722695649,-773.09,0.00023561,2]
[367268307,1750722695659,-1383.11,0.00023561,2]
[367268308,1750722695668,-614.35,0.00023561,2]
[367268309,1750722695678,-748.23,0.00023561,2]
[367268310,1750722695688,-714.68,0.00023561,2]
[367268311,1750722695697,-2159.87,0.00023561,2]
[367268312,1750722695707,-743.65,0.00023561,2]
[367268313,1750722695717,-1188.26,0.00023561,2]
[367268314,1750722695726,-568.52,0.00023561,2]
[367268315,1750722695736,-490.0,0.00023561,2]
[367268316,1750722695746,-490.0,0.00023561,2]
[367268317,1750722695756,-3712.65,0.00023561,2]
[367268318,1750722695765,-666.68,0.00023561,2]
[367268319,1750722695775,-6183.08,0.00023561,2]
[367268320,1750722695784,-2265.52,0.00023561,2]
[367268321,1750722695795,-665.97,0.00023561,2]
[367268322,1750722695805,-1772.95,0.00023561,2]
[367268323,1750722695814,-501.76,0.00023561,2]
[367268324,1750722695824,-748.79,0.00023561,2]
[367268325,1750722695833,-1159.28,0.00023561,2]
[367268326,1750722695846,-490.0,0.00023561,2]
[367268327,1750722695855,-490.0,0.00023561,2]
[367268328,1750722695864,-490.0,0.00023561,2]
[367268329,1750722695873,-588.89,0.00023561,2]
[367268330,1750722695883,-3504.75,0.00023561,2]
[367268331,1750722695892,-614.49,0.00023561,2]
[367268332,1750722695901,-720.06,0.00023561,2]
[367268333,1750722695911,-682.84,0.00023561,2]
[367268334,1750722695920,-991.61,0.00023561,2]
[367268335,1750722695930,-490.0,0.00023561,2]
[367268336,1750722695939,-1219.28,0.00023561,2]
[367268337,1750722695948,-580.16,0.00023561,2]
[367268338,1750722695958,-490.0,0.00023561,2]
[367268339,1750722695967,-943.5,0.00023561,2]
[367268340,1750722695978,-490.0,0.00023561,2]
[367268341,1750722695989,-490.0,0.00023561,2]
[367268342,1750722695999,-2894.4,0.00023561,2]
[367268343,1750722696009,-2679.66,0.00023561,2]
[367268344,1750722696019,-922.8,0.00023561,2]
[367268345,1750722696028,-1234.77,0.00023561,2]
[367268346,1750722696037,-1380.74,0.00023561,2]
[367268347,1750722696047,-1053.74,0.00023561,2]
[367268348,1750722696056,-490.0,0.00023561,2]
[367268349,1750722696068,-2030.88,0.00023561,2]
[367268350,1750722696078,-490.0,0.00023561,2]
[367268351,1750722696088,-684.68,0.00023561,2]
[367268352,1750722696100,-1872.56,0.00023561,2]
[367268353,1750722696110,-490.0,0.00023561,2]
[367268354,1750722696120,-490.0,0.00023561,2]
[367268355,1750722696130,-490.0,0.00023561,2]
[367268356,1750722696140,-3876.92,0.00023561,2]
[367268357,1750722696150,-767.49,0.00023561,2]
[367268358,1750722696159,-8470.08,0.00023561,2]
[367268359,1750722696169,-490.0,0.00023561,2]
[367268360,1750722696181,-900.72,0.00023561,2]
[367268361,1750722696192,-654.11,0.00023561,2]
[367268362,1750722696201,-1352.33,0.00023561,2]
[367268363,1750722696211,-1340.74,0.00023561,2]
[367268364,1750722696221,-1097.54,0.00023561,2]
[367268365,1750722696230,-490.0,0.00023561,2]
[367268366,1750722696240,-3230.89,0.00023561,2]
[367268367,1750722696249,-490.0,0.00023561,2]
[367268368,1750722696259,-866.86,0.00023561,2]
[367268369,1750722696267,-1448.28,0.00023561,2]
[367268370,1750722696276,-490.0,0.00023561,2]
[367268371,1750722696286,-771.53,0.00023561,2]
[367268372,1750722696295,-490.0,0.00023561,2]
[367268373,1750722696305,-490.0,0.00023561,2]
[367268374,1750722696314,-490.0,0.00023561,2]
[367268375,1750722696324,-5871.64,0.00023561,2]
[367268376,1750722696334,-2349.97,0.00023561,2]
[367268377,1750722696344,-537.03,0.00023561,2]
[367268378,1750722696353,-6144.25,0.00023561,2]
[367268379,1750722696363,-490.0,0.00023561,2]
[367268380,1750722696372,-490.0,0.00023561,2]
[367268381,1750722696382,-490.0,0.00023561,2]
[367268382,1750722696391,-490.0,0.00023561,2]
[367268383,1750722696402,-3583.29,0.00023561,2]
[367268384,1750722696411,-656.93,0.00023561,2]
[367268385,1750722696421,-514.78,0.00023561,2]
[367268386,1750722696431,-701.3,0.00023561,2]
[367268387,1750722696441,-693.71,0.00023561,2]
[367268388,1750722696450,-490.0,0.00023561,2]
[367268389,1750722696460,-1008.04,0.00023561,2]
[367268390,1750722696469,-1747.08,0.00023561,2]
[367268391,1750722696479,-2226.86,0.00023561,2]
[367268392,1750722696489,-923.1,0.00023561,2]
[367268393,1750722696499,-857.2,0.00023561,2]
[367268394,1750722696509,-490.0,0.00023561,2]
[367268395,1750722696518,-895.24,0.00023561,2]
[367268396,1750722696528,-490.0,0.00023561,2]
[367268397,1750722696538,-861.76,0.00023561,2]
[367268398,1750722696547,-490.0,0.00023561,2]
[367268399,1750722696556,-1080.0,0.00023574,2]
[367268400,1750722696565,-211.0,0.00023587,2]
[367268401,1750722696575,-208.0,0.0002361,2]
[367268402,1750722696585,-3084.20117464,0.00023612,2]
[367268403,1750722696594,-951.95365297,0.00023668,2]
[367268404,1750722696604,-1000.0,0.00023681,2]
[367268405,1750722696613,-400.0,0.00023687,2]
[367268406,1750722696624,-151.0,0.00023692,2]
[367268407,1750722696633,-500.0,0.00023695,2]
[367268408,1750722696643,-1000.0,0.00023698,2]
[367268409,1750722696734,-1000.0,0.0002371,2]
[367268410,1750722696743,-150.0,0.00023723,2]
[367268411,1750722696752,-150.0,0.0002373,2]
[367268412,1750722696761,-150.0,0.0002373,2]
[367268413,1750722696771,-1000.0,0.00023735,2]
[367268414,1750722696781,-6245.65629074,0.00023735,2]
[367268415,1750722696790,-150.0,0.00023736,2]
[367268416,1750722696799,-150.0,0.00023737,2]
[367268417,1750722696809,-150.0,0.00023739,2]
[367268418,1750722696818,-333.0,0.0002374,2]
[367268419,1750722696827,-150.0,0.00023744,2]
[367268420,1750722696837,-1000.0,0.00023748,2]
[367268421,1750722696850,-150.0,0.00023748,2]
[367268422,1750722696859,-150.0,0.00023755,2]
[367268423,1750722696868,-333.0,0.00023764,2]
[367268424,1750722696878,-3084.20117464,0.00023764,2]
[367268425,1750722696889,-150.0,0.00023764,2]
[367268426,1750722696898,-150.0,0.00023775,2]
[367268427,1750722696907,-150.0,0.00023775,2]
[367268428,1750722696918,-150.0,0.00023782,2]
[367268429,1750722696928,-150.0,0.00023789,2]
[367268430,1750722696939,-180.0,0.00023792,2]
[367268431,1750722696948,-150.0,0.00023793,2]
[367268432,1750722696959,-211.0,0.00023807,2]
[367268433,1750722696971,-1000.0,0.00023808,2]
[367268434,1750722696983,-2000.0,0.00023808,2]
[367268435,1750722696992,-200.0,0.00023808,2]
[367268436,1750722697003,-150.0,0.00023809,2]
[367268437,1750722697014,-150.0,0.00023815,2]
[367268438,1750722697023,-1004.0339588,0.00023816,2]
[367268439,1750722697032,-898.29195,0.00023817,2]
[367268440,1750722697042,-150.0,0.00023824,2]
[367268441,1750722697051,-930.68414561,0.00023824,2]
[367268442,1750722697060,-11163.84941026,0.00023831,10]
[367268443,1750722697069,-1000.0,0.00023833,2]
[367268444,1750722697079,-180.19,0.00023834,2]
[367268445,1750722697087,-768.02,0.00023834,2]
[367268446,1750722697096,-768.02,0.00023834,2]
[367268447,1750722697106,-4560.06,0.00023834,2]
[367268448,1750722697115,-4560.06,0.00023834,2]
[367268449,1750722697124,-4560.06,0.00023834,2]
[367268450,1750722697133,-4560.06,0.00023834,2]
[367268451,1750722697143,-4560.06,0.00023834,2]
[367268452,1750722697152,-4560.21,0.00023834,2]
[367268453,1750722697161,-627.28,0.00023834,2]
[367268454,1750722697170,-627.28,0.00023834,2]
[367268455,1750722697179,-627.28,0.00023834,2]
[367268456,1750722697189,-627.28,0.00023834,2]
[367268457,1750722697198,-627.49,0.00023834,2]
[367268458,1750722697207,-490.0,0.00023835,2]
[367268459,1750722697216,-490.0,0.00023835,2]
[367268460,1750722697225,-490.0,0.00023835,2]
[367268461,1750722697234,-544.01,0.00023835,2]
[367268462,1750722697243,-490.0,0.00023835,2]
[367268463,1750722697252,-490.0,0.00023835,2]
[367268464,1750722697262,-490.0,0.00023835,2]
[367268465,1750722697271,-490.0,0.00023835,2]
[367268466,1750722697280,-490.0,0.00023835,2]
[367268467,1750722697289,-490.0,0.00023835,2]
[367268468,1750722697298,-490.0,0.00023835,2]
[367268469,1750722697307,-769.985057,0.00023835,2]
[367268470,1750722697316,-490.0,0.00023835,2]
[367268471,1750722697325,-630.60154645,0.00023835,2]
[367268472,1750722697334,-846.230061,0.00023835,2]
[367268473,1750722697344,-490.0,0.00023835,2]
[367268474,1750722697353,-2887.656586,0.00023835,2]
[367268475,1750722697363,-155.429331,0.00023835,2]
[367268476,1750722697372,-490.0,0.00023835,2]
[367268477,1750722697381,-490.0,0.00023835,2]
[367268478,1750722697391,-490.0,0.00023835,2]
[367268479,1750722697400,-490.0,0.00023835,2]
[367268480,1750722697409,-490.0,0.00023835,2]
[367268481,1750722697418,-490.0,0.00023835,2]
[367268482,1750722697427,-565.9,0.00023835,2]
[367268483,1750722697436,-490.0,0.00023835,2]
[367268484,1750722697445,-713.41,0.00023835,2]
[367268485,1750722697454,-490.0,0.00023835,2]
[367268486,1750722697464,-828.92,0.00023835,2]
[367268487,1750722697473,-490.0,0.00023835,2]
[367268488,1750722697483,-1068.05,0.00023835,2]
[367268489,1750722697492,-490.0,0.00023835,2]
[367268490,1750722697501,-490.0,0.00023835,2]
[367268491,1750722697510,-490.0,0.00023835,2]
[367268492,1750722697519,-490.0,0.00023835,2]
[367268493,1750722697528,-490.0,0.00023835,2]
[367268494,1750722697538,-500.18,0.00023835,2]
[367268495,1750722697547,-716.27,0.00023835,2]
[367268496,1750722697556,-545.2,0.00023835,2]
[367268497,1750722697565,-552.43,0.00023835,2]
[367268498,1750722697575,-601.5,0.00023835,2]
[367268499,1750722697583,-490.0,0.00023835,2]
[367268500,1750722697593,-155.42933,0.00023835,2]
[367268501,1750722697602,-490.0,0.00023835,2]
[367268502,1750722697611,-490.0,0.00023835,2]
[367268503,1750722697619,-611.92,0.00023835,2]
[367268504,1750722697628,-490.0,0.00023835,2]
[367268505,1750722697638,-952.95,0.00023835,2]
[367268506,1750722697647,-718.57,0.00023835,2]
[367268507,1750722697656,-490.0,0.00023835,2]
[367268508,1750722697665,-490.0,0.00023835,2]
[367268509,1750722697675,-757.18,0.00023835,2]
[367268510,1750722697684,-679.45,0.00023835,2]
[367268511,1750722697694,-514.37,0.00023835,2]
[367268512,1750722697704,-1110.86,0.00023835,2]
[367268513,1750722697714,-291.00546861,0.00023835,2]
[367268514,1750722697723,-639.7,0.00023835,2]
[367268515,1750722697733,-505.49,0.00023835,2]
[367268516,1750722697742,-490.0,0.00023835,2]
[367268517,1750722697751,-490.0,0.00023835,2]
[367268518,1750722697761,-490.0,0.00023835,2]
[367268519,1750722697770,-582.87,0.00023835,2]
[367268520,1750722697779,-490.0,0.00023835,2]
[367268521,1750722697789,-751.41,0.00023835,2]
[367268522,1750722697798,-490.0,0.00023835,2]
[367268523,1750722697807,-490.0,0.00023835,2]
[367268524,1750722697815,-980.74,0.00023835,2]
[367268525,1750722697825,-554.04,0.00023835,2]
[367268526,1750722697834,-609.37,0.00023835,2]
[367268527,1750722697847,-490.0,0.00023835,2]
[367268528,1750722697856,-533.71,0.00023835,2]
[367268529,1750722697865,-490.0,0.00023835,2]
[367268530,1750722697874,-849.14,0.00023835,2]
[367268531,1750722697884,-490.0,0.00023835,2]
[367268532,1750722697894,-490.0,0.00023835,2]
[367268533,1750722697905,-491.0,0.00023835,2]
[367268534,1750722697914,-490.0,0.00023835,2]
[367268535,1750722697924,-490.0,0.00023835,2]
[367268536,1750722697935,-1013.16,0.00023835,2]
[367268537,1750722697946,-490.0,0.00023835,2]
[367268538,1750722697956,-490.0,0.00023835,2]
[367268539,1750722697969,-490.0,0.00023835,2]
[367268540,1750722697978,-490.0,0.00023835,2]
[367268541,1750722697989,-780.51,0.00023835,2]
[367268542,1750722698001,-579.65,0.00023835,2]
[367268543,1750722698010,-869.78,0.00023835,2]
[367268544,1750722698019,-660.96,0.00023835,2]
[367268545,1750722698029,-593.95,0.00023835,2]
[367268546,1750722698039,-627.48,0.00023835,2]
[367268547,1750722698049,-633.11,0.00023835,2]
[367268548,1750722698059,-785.73,0.00023835,2]
[367268549,1750722698069,-490.0,0.00023835,2]
[367268550,1750722698079,-490.0,0.00023835,2]
[367268551,1750722698090,-490.0,0.00023835,2]
[367268552,1750722698100,-490.0,0.00023835,2]
[367268553,1750722698110,-918.6,0.00023835,2]
[367268554,1750722698120,-490.0,0.00023835,2]
[367268555,1750722698130,-360.06907472,0.00023835,2]
[367268556,1750722698141,-490.0,0.00023835,2]
[367268557,1750722698151,-497.36,0.00023835,2]
[367268558,1750722698161,-490.0,0.00023835,2]
[367268559,1750722698171,-589.72,0.00023835,2]
[367268560,1750722698181,-602.51,0.00023835,2]
[367268561,1750722698190,-759.11,0.00023835,2]
[367268562,1750722698200,-531.11,0.00023835,2]
[367268563,1750722698208,-502.6,0.00023835,2]
[367268564,1750722698217,-1316.83,0.00023835,2]
[367268565,1750722698227,-975.58,0.00023835,2]
[367268566,1750722698236,-949.61,0.00023835,2]
[367268567,1750722698245,-490.0,0.00023835,2]
[367268568,1750722698254,-490.0,0.00023835,2]
[367268569,1750722698263,-653.64,0.00023835,2]
[367268570,1750722698272,-490.0,0.00023835,2]
[367268571,1750722698281,-490.0,0.00023835,2]
[367268572,1750722698291,-490.0,0.00023835,2]
[367268573,1750722698302,-490.0,0.00023835,2]
[367268574,1750722698311,-648.14,0.00023835,2]
[367268575,1750722698320,-490.0,0.00023835,2]
[367268576,1750722698331,-686.78,0.00023835,2]
[367268577,1750722698340,-556.82,0.00023835,2]
[367268578,1750722698350,-674.79,0.00023835,2]
[367268579,1750722698359,-1024.07,0.00023835,2]
[367268580,1750722698368,-624.84,0.00023835,2]
[367268581,1750722698377,-490.0,0.00023835,2]
[367268582,1750722698387,-490.0,0.00023835,2]
[367268583,1750722698396,-678.9,0.00023835,2]
[367268584,1750722698406,-490.0,0.00023835,2]
[367268585,1750722698415,-490.0,0.00023835,2]
[367268586,1750722698425,-490.0,0.00023835,2]
[367268587,1750722698435,-1001.69,0.00023835,2]
[367268588,1750722698445,-490.0,0.00023835,2]
[367268589,1750722698454,-490.0,0.00023835,2]
[367268590,1750722698464,-490.0,0.00023835,2]
[367268591,1750722698474,-737.47,0.00023835,2]
[367268592,1750722698483,-575.57,0.00023835,2]
[367268593,1750722698493,-490.0,0.00023835,2]
[367268594,1750722698503,-490.0,0.00023835,2]
[367268595,1750722698513,-490.0,0.00023835,2]
[367268596,1750722698522,-490.0,0.00023835,2]
[367268597,1750722698532,-624.47,0.00023835,2]
[367268598,1750722698543,-490.0,0.00023835,2]
[367268599,1750722698556,-505.59,0.00023835,2]
[367268600,1750722698567,-310.85736167,0.00023835,2]
[367268601,1750722698576,-664.7,0.00023835,2]
[367268602,1750722698588,-490.0,0.00023835,2]
[367268603,1750722698598,-490.0,0.00023835,2]
[367268604,1750722698608,-502.1,0.00023835,2]
[367268605,1750722698619,-490.0,0.00023835,2]
[367268606,1750722698630,-490.0,0.00023835,2]
[367268607,1750722698640,-831.47,0.00023835,2]
[367268608,1750722698649,-490.0,0.00023835,2]
[367268609,1750722698659,-889.99,0.00023835,2]
[367268610,1750722698668,-574.36,0.00023835,2]
[367268611,1750722698678,-644.55,0.00023835,2]
[367268612,1750722698687,-891.28,0.00023835,2]
[367268613,1750722698697,-1024.42,0.00023835,2]
[367268614,1750722698706,-490.0,0.00023835,2]
[367268615,1750722698716,-175.470343,0.00023835,7]
[367268616,1750722698725,-490.0,0.00023835,2]
[367268617,1750722698735,-490.0,0.00023835,2]
[367268618,1750722698744,-1009.98,0.00023835,2]
[367268619,1750722698753,-490.0,0.00023835,2]
[367268620,1750722698763,-1140.07,0.00023835,2]
[367268621,1750722698772,-456.27,0.00023835,2]
[367268622,1750722698782,-809.41,0.00023835,2]
[367268623,1750722698791,-490.0,0.00023835,2]
[367268624,1750722698802,-490.0,0.00023835,2]
[367268625,1750722698812,-490.0,0.00023835,2]
[367268626,1750722698823,-490.0,0.00023835,2]
[367268627,1750722698833,-490.0,0.00023835,2]
[367268628,1750722698845,-863.02,0.00023835,2]
[367268629,1750722698854,-707.74,0.00023835,2]
[367268630,1750722698866,-490.0,0.00023835,2]
[367268631,1750722698876,-177.69,0.00023835,2]
[367268632,1750722698889,-524.66,0.00023835,2]
[367268633,1750722698900,-490.0,0.00023835,2]
[367268634,1750722698910,-490.0,0.00023835,2]
[367268635,1750722698921,-490.0,0.00023835,2]
[367268636,1750722698931,-490.0,0.00023835,2]
[367268637,1750722698941,-743.33,0.00023835,2]
[367268638,1750722698952,-701.07,0.00023835,2]
[367268639,1750722698963,-490.0,0.00023835,2]
[367268640,1750722698973,-8500.71,0.00023835,2]
[367268641,1750722698984,-490.0,0.00023835,2]
[367268642,1750722698994,-563.63,0.00023835,2]
[367268643,1750722699005,-726.9,0.00023835,2]
[367268644,1750722699015,-709.26,0.00023835,2]
[367268645,1750722699028,-866.14,0.00023835,2]
[367268646,1750722699038,-658.73,0.00023835,2]
[367268647,1750722699049,-490.0,0.00023835,2]
[367268648,1750722699059,-490.0,0.00023835,2]
[367268649,1750722699070,-520.15,0.00023835,2]
[367268650,1750722699080,-668.39,0.00023835,2]
[367268651,1750722699091,-1817.04,0.00023835,2]
[367268652,1750722699102,-490.0,0.00023835,2]
[367268653,1750722699113,-490.0,0.00023835,2]
[367268654,1750722699124,-890.8,0.00023835,2]
[367268655,1750722699137,-490.0,0.00023835,2]
[367268656,1750722699147,-490.0,0.00023835,2]
[367268657,1750722699158,-660.76,0.00023835,2]
[367268658,1750722699168,-889.57,0.00023835,2]
[367268659,1750722699177,-852.61,0.00023835,2]
[367268660,1750722699187,-639.15,0.00023835,2]
[367268661,1750722699198,-725.63,0.00023835,2]
[367268662,1750722699210,-1036.14,0.00023835,2]
[367268663,1750722699222,-490.0,0.00023835,2]
[367268664,1750722699233,-490.0,0.00023835,2]
[367268665,1750722699243,-490.0,0.00023835,2]
[367268666,1750722699254,-250.0,0.00023835,2]
[367268667,1750722699265,-169.06337,0.00023835,7]
[367268668,1750722699275,-687.15,0.00023835,2]
[367268669,1750722699287,-3451.37,0.00023835,2]
[367268670,1750722699297,-2016.76,0.00023835,2]
[367268671,1750722699307,-490.0,0.00023835,2]
[367268672,1750722699317,-490.0,0.00023835,2]
[367268673,1750722699328,-1486.84,0.00023835,2]
[367268674,1750722699338,-490.0,0.00023835,2]
[367268675,1750722699348,-2600.88,0.00023835,2]
[367268676,1750722699358,-490.0,0.00023835,2]
[367268677,1750722699367,-852.3,0.00023835,2]
[367268678,1750722699376,-193.34394259,0.00023835,2]
[367268679,1750722699387,-490.0,0.00023835,2]
[367268680,1750722699397,-891.95,0.00023835,2]
[367268681,1750722699407,-490.0,0.00023835,2]
[367268682,1750722699417,-543.07,0.00023835,2]
[367268683,1750722699427,-490.0,0.00023835,2]
[367268684,1750722699436,-490.0,0.00023835,2]
[367268685,1750722699446,-533.43,0.00023835,2]
[367268686,1750722699456,-685.3,0.00023835,2]
[367268687,1750722699466,-490.0,0.00023835,2]
[367268688,1750722699476,-490.0,0.00023835,2]
[367268689,1750722699486,-490.0,0.00023835,2]
[367268690,1750722699495,-490.0,0.00023835,2]
[367268691,1750722699505,-1059.99,0.00023835,2]
[367268692,1750722699515,-1225.41,0.00023835,2]
[367268693,1750722699525,-1859.87,0.00023835,2]
[367268694,1750722699535,-1239.33,0.00023835,2]
[367268695,1750722699545,-747.66,0.00023835,2]
[367268696,1750722699555,-3515.34,0.00023835,2]
[367268697,1750722699565,-490.0,0.00023835,2]
[367268698,1750722699575,-490.0,0.00023835,2]
[367268699,1750722699585,-2258.43,0.00023835,2]
[367268700,1750722699596,-644.73,0.00023835,2]
[367268701,1750722699606,-1049.17,0.00023835,2]
[367268702,1750722699616,-588.18,0.00023835,2]
[367268703,1750722699625,-1516.29,0.00023835,2]
[367268704,1750722699635,-490.0,0.00023835,2]
[367268705,1750722699645,-68697.11,0.00023835,2]
[367268706,1750722699656,-936.03,0.00023835,2]
[367268707,1750722699665,-1139.14,0.00023835,2]
[367268708,1750722699676,-490.0,0.00023835,2]
[367268709,1750722699685,-803.72,0.00023835,2]
[367268710,1750722699695,-647.9,0.00023835,2]
[367268711,1750722699704,-1377.576921,0.00023835,7]
[367268712,1750722699714,-516.62,0.00023835,2]
[367268713,1750722699723,-1134.51,0.00023835,2]
[367268714,1750722699733,-1410.85,0.00023835,2]
[367268715,1750722699742,-498.27,0.00023835,2]
[367268716,1750722699751,-490.0,0.00023835,2]
[367268717,1750722699761,-971.99,0.00023835,2]
[367268718,1750722699770,-490.0,0.00023835,2]
[367268719,1750722699780,-1377.576926,0.00023835,7]
[367268720,1750722699800,-613.92,0.00023835,2]
[367268721,1750722699812,-527.41,0.00023835,2]
[367268722,1750722699822,-510.30399379,0.00023835,2]
[367268723,1750722699832,-854.15,0.00023835,2]
[367268724,1750722699846,-1578.51,0.00023835,2]
[367268725,1750722699856,-502.06,0.00023835,2]
[367268726,1750722699866,-1004.78,0.00023835,2]
[367268727,1750722699876,-722.59,0.00023835,2]
[367268728,1750722699886,-1149.68,0.00023835,2]
[367268729,1750722699896,-490.0,0.00023835,2]
[367268730,1750722699907,-1046.97,0.00023835,2]
[367268731,1750722699918,-490.0,0.00023835,2]
[367268732,1750722699929,-490.0,0.00023835,2]
[367268733,1750722699939,-581.05,0.00023835,2]
[367268734,1750722699949,-1200.68,0.00023835,2]
[367268735,1750722699959,-694.62,0.00023835,2]
[367268736,1750722699970,-490.0,0.00023835,2]
[367268737,1750722699980,-4672.05,0.00023835,2]
[367268738,1750722699990,-507.86,0.00023835,2]
[367268739,1750722700000,-684.55,0.00023835,2]
[367268740,1750722700011,-1066.19,0.00023835,2]
[367268741,1750722700023,-4445.32,0.00023835,2]
[367268742,1750722700034,-1782.62,0.00023835,2]
[367268743,1750722700046,-156.38815269,0.00023835,2]
[367268744,1750722700056,-869.16,0.00023835,2]
[367268745,1750722700066,-490.0,0.00023835,2]
[367268746,1750722700076,-993.54,0.00023835,2]
[367268747,1750722700086,-490.0,0.00023835,2]
[367268748,1750722700096,-1775.91,0.00023835,2]
[367268749,1750722700106,-5169.32,0.00023835,2]
[367268750,1750722700116,-775.96,0.00023835,2]
[367268751,1750722700127,-641.17,0.00023835,2]
[367268752,1750722700136,-1008.32,0.00023835,2]
[367268753,1750722700147,-983.36,0.00023835,2]
[367268754,1750722700158,-490.0,0.00023835,2]
[367268755,1750722700167,-1881.06,0.00023835,2]
[367268756,1750722700177,-829.17,0.00023835,2]
[367268757,1750722700187,-1812.42,0.00023835,2]
[367268758,1750722700197,-834.28,0.00023835,2]
[367268759,1750722700207,-622.57,0.00023835,2]
[367268760,1750722700217,-857.91,0.00023835,2]
[367268761,1750722700227,-1188.59,0.00023835,2]
[367268762,1750722700236,-704.39,0.00023835,2]
[367268763,1750722700246,-495.31,0.00023835,2]
[367268764,1750722700256,-153.756277,0.00023835,7]
[367268765,1750722700265,-798.05,0.00023835,2]
[367268766,1750722700275,-2746.66,0.00023835,2]
[367268767,1750722700285,-490.0,0.00023835,2]
[367268768,1750722700294,-1013.71,0.00023835,2]
[367268769,1750722700304,-153.756269,0.00023835,7]
[367268770,1750722700314,-769.79,0.00023835,2]
[367268771,1750722700325,-1102.34,0.00023835,2]
[367268772,1750722700335,-490.0,0.00023835,2]
[367268773,1750722700344,-793.99,0.00023835,2]
[367268774,1750722700354,-2843.97,0.00023835,2]
[367268775,1750722700365,-490.0,0.00023835,2]
[367268776,1750722700375,-21749.08,0.00023835,2]
[367268777,1750722700384,-151.0,0.00023835,7]